Cogmind - Beta 13 @@@ ROGUE MODE // 2024.04.08 @ 16:41:55 Player: chexo4 Result: Smashed by cave-in Performance ------------- Evolutions (0) 0 Regions Visited (3) 600 Robots Destroyed (16) 80 Value Destroyed (215) 215 Prototype IDs (0) 0 Alien Tech Used (0) 0 Bonus (0) 0 TOTAL SCORE: 895 Bonus ------- None Cogmind --------- Core Integrity 0/250 Matter 295/300 Energy 100/100 System Corruption 15% Temperature Cool (0) Movement Rolling (110) Ox2 Location -10/Exiles Parts ------- > --- POWER (1) -------- (None) > --- PROPULSION (2) --- Wheel > --- UTILITY (2) ------ Large Storage Unit > --- WEAPON (2) ------- Mining Laser > --- INVENTORY (15) --- High-capacity Battery (250) Large Matter Pod (150) Assault Rifle Light Assault Rifle Light Assault Rifle Datajack Peak State ------------ > --- POWER ------------ Light Ion Engine > --- PROPULSION ------- Compact Wheel Compact Wheel > --- UTILITY ---------- Large Storage Unit Seismic Detector > --- WEAPON ----------- EM Pulse Gun Light Assault Rifle > --- INVENTORY -------- Light Ion Engine Light Ion Engine Wheel Wheel High-capacity Battery Large Matter Pod Assault Rifle Light Assault Rifle Datajack Mining Laser [Rating: 8] Favorites ----------- Power Light Ion Engine Engine Light Ion Engine Propulsion Wheel Wheel Wheel Utility Large Storage Unit Device Seismic Detector Storage Large Storage Unit Weapon Light Assault Rifle Energy Gun EM Pulse Gun Ballistic Gun Light Assault Rifle Launcher Grenade Launcher Special Weapon Mining Laser Build | -11 -10 -10 -10 ------- Run | Yrd Mat Min Exi Slots Evolved . | . . . . Power . | . . . . Propulsion . | . . . . Utility . | . . . . Weapon . | . . . . Parts Attached 19 | 9 3 5 2 Power 3 | 1 . 1 1 Engine 3 | 1 . 1 1 Core . | . . . . Reactor . | . . . . Propulsion 5 | 3 . 2 . Treads . | . . . . Leg . | . . . . Wheel 5 | 3 . 2 . Hover . | . . . . Flight . | . . . . Utility 3 | 2 1 . . Device 1 | 1 . . . Storage 2 | 1 1 . . Processor . | . . . . Hackware . | . . . . Protection . | . . . . Artifact . | . . . . Weapon 8 | 3 2 2 1 Energy Gun 3 | . 2 1 . Energy Cannon . | . . . . Ballistic Gun 3 | 3 . . . Ballistic Cannon . | . . . . Launcher 1 | . . 1 . Special Weapon 1 | . . . 1 Impact Weapon . | . . . . Slashing Weapon . | . . . . Piercing Weapon . | . . . . Special Melee Weapon . | . . . . Unidentified Prototypes . | . . . . Parts Lost 9 | . 1 3 5 Power 2 | . . . 2 Propulsion 3 | . . 2 1 Utility 1 | . . . 1 Weapon 3 | . 1 1 1 Highest Loss Streak 3 | . 1 2 3 To Critical Strikes . | . . . . Average Slot Usage (%) 95 | . 99 98 93 Engine 13 | . 14 14 13 Wheel 27 | . 28 27 28 Device 12 | . 14 14 11 Storage 14 | . 14 14 14 Energy Gun 11 | . 9 13 11 Ballistic Gun 11 | . 17 14 9 Special Weapon 2 | . . . 4 Naked Turns . | . . . . Heaviest Build 27 | 12 27 27 27 Greatest Support 32 | 32 32 32 20 Greatest Overweight (x) 8 | . . 8 1 Average Overweight (x) . | . . . 1 Largest Inventory Capacity 15 | 8 15 15 15 Average Capacity 14 | 7 13 15 15 Most Carried 10 | 5 9 10 7 Average Carried 6 | 3 7 8 6 Final Capacity 15 | 8 15 15 15 Final Carried 8 | 5 8 7 6 Class Distribution -------------------- 100% | Mutant Dominant Class ---------------- Mutant | -10/Materials Mutant | -10/Mines Mutant | -10/Exiles Resources | -11 -10 -10 -10 ----------- Run | Yrd Mat Min Exi Matter Collected 588 | 340 83 165 . Remotely . | . . . . Salvage Created 360 | 167 41 152 . Parts 32 | 15 4 13 . Haulers Intercepted . | . . . . Recyclers Shooed 1 | . . 1 . Parts Field Recycled . | . . . . Retrieved Matter . | . . . . Parts Self-Destructed . | . . . . Prevented . | . . . . Kills | -11 -10 -10 -10 ------- Run | Yrd Mat Min Exi Combat Hostiles Destroyed 11 | . 3 8 . Guns 11 | . 3 8 . Classes Destroyed 4 | 2 1 1 . Tunneler 4 | 4 . . . Recycler 1 | 1 . . . Swarmer 9 | . 3 6 . Grunt 2 | . . 2 . Best Kill Streak 3 | 3 3 3 . Combat Bots Only 3 | . 3 3 . Max Kills in Single Turn 2 | 1 1 2 . Gunslinging . | . . . . Exploded . | . . . . Melee . | . . . . Uniques/NPCs Destroyed . | . . . . Combat | -11 -10 -10 -10 -------- Run | Yrd Mat Min Exi Hostile Shots Fired 55 | . 24 31 . Missed 14 | . 3 11 . Damage Taken 1149 | . 178 278 693 Core 283 | . 46 54 183 Absorbed by Shields . | . . . . Core Remaining (%) 100 | 100 . . . Volleys Fired 59 | 11 11 17 20 Largest 2 | 2 2 2 2 Hottest 140 | 40 60 60 140 Shots Fired 105 | 22 17 33 33 Gun 83 | 22 17 31 13 Cannon . | . . . . Launcher 2 | . . 2 . Special 20 | . . . 20 Kinetic 50 | 22 11 17 . Thermal 20 | . . . 20 Explosive 2 | . . 2 . Electromagnetic 33 | . 6 14 13 Robot Hit Streak 13 | 5 6 13 . Robot Miss Streak 5 | 5 2 3 . Penetration Max . | . . . . Secondary Targets 2 | . . 2 . Max Gunslinging Chain 1 | . . 1 . Shots Hit Robots 42 | 13 11 18 . Core Hits 26 | 6 5 15 . Critical Kills . | . . . . Critical Parts Destroyed . | . . . . Critical Strikes . | . . . . Melee Attacks . | . . . . Impact . | . . . . Slashing . | . . . . Piercing . | . . . . Sneak Attacks . | . . . . Combat Hostiles . | . . . . Follow-up Attacks . | . . . . Damage Inflicted 698 | 149 148 401 . Guns 461 | 149 125 187 . Cannons . | . . . . Explosions 207 | . 23 184 . Melee . | . . . . Ramming 30 | . . 30 . Kinetic 292 | 149 58 85 . Thermal 74 | . 23 51 . Explosive 133 | . . 133 . Electromagnetic 169 | . 67 102 . Impact . | . . . . Slashing . | . . . . Piercing . | . . . . Highest Corruption 9 | . . . 9 Average Corruption 9 | . . . 9 Corruption Purged . | . . . . Corruption Blocked . | . . . . Effects 4 | . . . 4 Message Errors 1 | . . . 1 Matter Fused 1 | . . . 1 Heat Flow Errors 1 | . . . 1 Data Loss (minor) 1 | . . . 1 Overload Shots . | . . . . Overflow Damage 3 | . . 3 . Projectiles . | . . . . Explosions 3 | . . 3 . Melee . | . . . . Knockbacks . | . . . . Impact . | . . . . Kinetic . | . . . . Secondary . | . . . . Self-Inflicted Damage 80 | . . 80 . Shots 3 | . . 3 . Rammed 4 | 1 . 3 . Targets Rammed 4 | 1 . 3 . Kicked . | . . . . Crushed . | . . . . Highest Temperature 220 | . 40 52 220 Average Temperature 60 | . 20 22 79 Received Heat Transfer 72 | . 18 54 . Effects 3 | . . . 3 Interference 3 | . . . 3 Siege Activations . | . . . . Robots Corrupted . | . . . . Combat Hostiles . | . . . . Parts Fried . | . . . . Impact Corruptions . | . . . . Robots Melted . | . . . . Combat Hostiles . | . . . . Parts Melted . | . . . . Heat Transferred 150 | . 50 100 . Parts Sabotaged . | . . . . Parts Stolen . | . . . . Parts Stripped . | . . . . Power Chain Reactions 2 | . 1 1 . Alert | -11 -10 -10 -10 ------- Run | Yrd Mat Min Exi Peak Influence 243 | 25 98 243 . Initial 37 | . 16 37 . Average 108 | 12 33 180 . Maximum Alert Level 1 | . . 1 . Low Security (%) 74 | 100 100 52 . Level 1 25 | . . 47 . Level 2 . | . . . . Level 3 . | . . . . Level 4 . | . . . . Level 5 . | . . . . High Security . | . . . . Max Security . | . . . . Squads Dispatched 1 | . 1 . . Investigation . | . . . . Extermination . | . . . . Reinforcement 1 | . 1 . . Assault . | . . . . Garrison . | . . . . Intercept . | . . . . Searches Triggered . | . . . . Construction Impeded . | . . . . Haulers Reinforced . | . . . . Active Scanning Responses . | . . . . Cargo Convoy Interrupts . | . . . . Stealth | -11 -10 -10 -10 --------- Run | Yrd Mat Min Exi Distress Signals . | . . . . Communications Jammed . | . . . . Distress Signals . | . . . . Times Spotted 16 | . 6 10 . Peak Tracking Total 4 | . 4 3 . Tactical Retreats 1 | . . 1 . Traps | -11 -10 -10 -10 ------- Run | Yrd Mat Min Exi Traps Triggered . | . . . . Indirectly . | . . . . Trap Hack Attempts . | . . . . Triggered . | . . . . Disarmed . | . . . . Reprogrammed . | . . . . Reused . | . . . . Traps Extracted . | . . . . Installed . | . . . . Triggered . | . . . . Machines | -11 -10 -10 -10 ---------- Run | Yrd Mat Min Exi Machines Disabled 1 | . 1 . . Max in Single Turn 1 | . 1 . . Machines Repaired . | . . . . Machines Dismantled . | . . . . Machines Sabotaged . | . . . . Overloaded Fab Kills . | . . . . Hacking | -11 -10 -10 -10 --------- Run | Yrd Mat Min Exi Machines Accessed 4 | . . . 4 Terminals . | . . . . Fabricators . | . . . . Repair Stations . | . . . . Recycling Units . | . . . . Scanalyzers . | . . . . Garrison Access . | . . . . Total Hacks 4 | . . . 4 Successful 4 | . . . 4 Failed . | . . . . Catastrophic . | . . . . Database Lockouts . | . . . . Manual . | . . . . Terminals . | . . . . Fabricators . | . . . . Repair Stations . | . . . . Recycling Units . | . . . . Scanalyzers . | . . . . Garrison Access . | . . . . Terminal Hacks 4 | . . . 4 Record 4 | . . . 4 Fabricator Hacks . | . . . . Repair Station Hacks . | . . . . Recycling Unit Hacks . | . . . . Scanalyzer . | . . . . Garrison Access Hacks . | . . . . Unauthorized Hacks . | . . . . Terminals . | . . . . Fabricators . | . . . . Repair Stations . | . . . . Recycling Units . | . . . . Scanalyzers . | . . . . Garrison Access . | . . . . Data Cores Recovered . | . . . . Used . | . . . . Hacking Detections . | . . . . Full Trace Events . | . . . . Feedback Events . | . . . . Feedback Blocked . | . . . . Robot Schematics Acquired . | . . . . Robots Built . | . . . . Authchips . | . . . . Time . | . . . . Total Robot Build Rating . | . . . . Part Schematics Acquired . | . . . . Parts Built . | . . . . Authchips . | . . . . Time . | . . . . Total Part Build Rating . | . . . . Parts Repaired . | . . . . Time . | . . . . Parts Recycled . | . . . . Recycled Matter . | . . . . Retrieved Matter . | . . . . Retrieved Components . | . . . . Parts Scanalyzed . | . . . . Part Schematics Acquired . | . . . . Parts Damaged . | . . . . Bothacking | -11 -10 -10 -10 ------------ Run | Yrd Mat Min Exi Used RIF Installer . | . . . . Robots Hacked . | . . . . Non-combat . | . . . . Combat . | . . . . Robot Hacks Applied . | . . . . Relay Couplers Released . | . . . . Fabnet Peak Effective % . | . . . . Robots Rewired . | . . . . Allies Hacked . | . . . . Hacks Repelled . | . . . . Allies | -11 -10 -10 -10 -------- Run | Yrd Mat Min Exi Total Allies . | . . . . Largest Group . | . . . . Highest-Rated Group . | . . . . Highest-Rated Ally . | . . . . Total Orders . | . . . . Ally Attacks . | . . . . Total Damage . | . . . . Kills . | . . . . Allies Corrupted . | . . . . Allies Melted . | . . . . Intel | -11 -10 -10 -10 ------- Run | Yrd Mat Min Exi Robot Analysis Total . | . . . . Derelict Logs Recovered 2 | . . 2 . Drone Launches . | . . . . Drone Recoveries . | . . . . Exploration | -11 -10 -10 -10 ------------- Run | Yrd Mat Min Exi Turns Passed 1351 | 113 158 315 765 Spaces Moved 970 | 66 122 218 564 Core 13 | 12 . 1 . Treads . | . . . . Legs . | . . . . Wheels 957 | 54 122 217 564 Hover . | . . . . Flight . | . . . . Fastest Speed 50 | 50 100 95 95 Average Speed 96 | 90 100 99 95 Slowest Speed 450 | 100 100 450 95 Overloaded Moves . | . . . . Propulsion Burnouts . | . . . . Robots Hopped . | . . . . Cave-ins Triggered 3 | . . . 3 Exploration Rate (%) 36 | 5 27 33 82 Regions Visited 3 Branch Regions 2 Pre-discovered Areas 1 | . . 1 . Known Exits Taken . | . . . . Unknown Exits Taken 3 | 1 1 1 . Scrap Searched 1 | . . 1 . Spaces Dug 20 | . . . 20 Terrain Destroyed 44 | . 6 18 20 Melee . | . . . . Projectile 20 | . . . 20 AOE 24 | . 6 18 . Terrain Rammed . | . . . . Walls Destroyed . | . . . . Machines Disabled . | . . . . Actions | -11 -10 -10 -10 --------- Run | Yrd Mat Min Exi Total 1246 | 97 143 286 720 Wait 174 | . . 40 134 Move 966 | 65 121 217 563 Hop . | . . . . Pick Up 20 | 11 6 3 . Fast Attach 1 | 1 . . . Attach 11 | 6 1 3 1 Detach . | . . . . Swap 7 | 2 2 2 1 Drop 3 | . 2 1 . Fire 59 | 11 11 17 20 Melee . | . . . . Ram 4 | 1 . 3 . Kick . | . . . . Crush . | . . . . Escape Stasis 1 | . . . 1 Rewire . | . . . . Trap . | . . . . Miscellaneous . | . . . . Route ------- -11/Scrapyard -10/Materials -10/Mines (discovered 2 exits: [*Mat] / *Exi) -10/Exiles (discovered 1 exit: [*Min]) History --------- Turn | Location | Event 3 | -11/Scrapyard | Discovered new exit (range 16) 114 | -11/Scrapyard | Entered Materials 265 | -10/Materials | Discovered new exit (range 7) 272 | -10/Materials | Entered Mines 274 | -10/Mines | Met a Derelict bent on vengeance 302 | -10/Mines | Build established: Mutant 347 | -10/Mines | Learned location of Zion (-6) 351 | -10/Mines | Learned Materials emergency access door positions 352 | -10/Mines | Discovered new exit (range 9) 580 | -10/Mines | Deemed a non-threat by the Exiles lab entrance 581 | -10/Mines | Discovered new exit (range 5) 587 | -10/Mines | Entered Exiles 587 | -10/Exiles | Found Exiles lab abandoned 949 | -10/Exiles | Discovered new exit (range 14) 1196 | -10/Exiles | Crushed by falling debris 1196 | -10/Exiles | Core integrity fell below 50% 1216 | -10/Exiles | Crushed by falling debris 1217 | -10/Exiles | Core integrity fell below 20% 1227 | -10/Exiles | Lost 3 parts (1p1u1w) 1353 | -10/Exiles | Crushed by falling debris 1353 | -10/Exiles | Smashed by cave-in Last Messages --------------- Crushed by falling debris. Lgt. Ion Engine destroyed. System corrupted by crushing effect (+5). EM Pulse Gun destroyed. System corrupted by crushing effect (+1). Seismic Detector destroyed. System corrupted by crushing effect (+3). System corrupted: Component data lost. The unstable cave ceiling collapses. Crushed by falling debris. System corrupted: Matter fused (-5). The unstable cave ceiling collapses. M/X9S3CVGLHWQJNV%K45I= System corrupted: Heat flow error (+141). The unstable cave ceiling collapses. Crushed by falling debris. Lgt. Ion Engine destroyed. System corrupted by crushing effect (+2). Wheel destroyed. System corrupted by crushing effect (+4). Map ----- +----------------------------------------------------+ | | | | | | | | | | | | | | | | | | | | | | | | | | | | | | | | | | | | | | | | | | | | | | | | | | | ???????????????????????#@##?????????????????????? | | ???????????????????????####?????????????????????? | | ???????????????????????# # #????????????????????? | | ??????????????????????######????????????????????? | | ??????????????????????# ##??????????????????????? | | ??????????????????????# #???????????????????????? | | ??????????????????????###???????????????????????? | | ??????????????????????# #???????????????????????? | | ??????????????????????# #???????????????????????? | | ?????????????????????## #???????????????????????? | | ???????????????????### ##???????????????????????? | | ??????????????????## ##????????????????????????? | | ??????????????????#####?????????????????????????? | | ??????????????????# ##??????????????????????????? | | ??????????????????####??????????????????????????? | | ??????????????????####??????????????????????????? | | ????????????????###"##??????????????????????????? | | ???????????????## ##??????????????????????????? | | ???????????????# #??????????????????????????? | | ???????????????# < #??????????????????????????? | | ???????????????# ###????????????????????????? | | ???????????????# #????????????????????????? | | ???????????????# ##????????????????????????? | | ???????????????## #?????????????????????????? | | ????????????????# ##????????????????????????? | +----------------------------------------------------+ Best States ------------- Heat Dissipation 25 Energy Generation 10 Energy Capacity 125 Matter Stores 300 Matter Capacity 300 Sight Range 16 Terrain Scan Density 10 Evasion (%) 50 Item Schematics ----------------- None Robot Schematics ------------------ None Fabricated ------------ Nothing Alien Tech Used ----------------- None Achievements -------------- None Challenges ------------ None Game ------ Seed BoreNeutronProcessor Manual? 0 Play Time 00:14:09 Cumulative 15.8 hours Start 2024.04.08 @ 16:28:30 End 2024.04.08 @ 16:41:55 Sessions 1 Manual Loads 0 Difficulty Rogue Special Mode None Game No. 44 Rogue 44 Adventurer 0 Explorer 0 Win Type - Total 0 Types 0/0/0/0/0/0/0/0/0 Lore% 16 Gallery% 26 Achievement% 21 Wizard Run 0 Options --------- Layout 1 ASCII 0 Keyboard 0 Movement Arrows Keybinds 0 Fullscreen 2 Font 24/Smallcaps Map View 50x35 Zoom Use 0% Tactical HUD 0 Map Filters NONE Filters NONE Steam 1 RUN: 3d89708f-fcd7-4c70-aaf9-972dbfce2b4e